bitfinex/quotes_SOLUSD_20240725
["timestamp","ask_amount","ask_price","bid_price","bid_amount"]
[1721875415746,6.5983,171.41,171.27,1.87146547]
[1721875416042,0.58387342,171.28,171.27,1.16734458]
[1721875416941,0.58387342,171.28,171.26,1.16733661]
[1721875417142,0.58387342,171.28,171.27,1.16733664]
[1721875417566,0.58387342,171.28,171.26,46.16726226]
[1721875418487,0.58387342,171.28,171.27,1.16729319]
[1721875418786,42.53214062,171.43,171.27,8.21919319]
[1721875418985,5.8342,171.41,171.28,45.0]
[1721875419369,5.8343,171.4,171.28,45.0]
[1721875419764,5.8346,171.39,171.28,45.0]
[1721875419956,5.8343,171.41,171.28,45.0]
[1721875420163,5.8343,171.41,171.29,1.16717778]
[1721875420466,5.8343,171.41,171.25,8.5342595]
[1721875420467,17.53,171.41,171.25,8.5342595]
[1721875420978,5.8358,171.36,171.25,8.5342595]
[1721875421683,5.8353,171.37,171.25,8.5342595]
[1721875422386,5.8343,171.4,171.26,1.16742465]
[1721875422976,5.8343,171.4,171.26,46.16742465]
[1721875423282,5.8346,171.39,171.26,1.16742465]
[1721875423788,5.8343,171.4,171.26,1.16742465]
[1721875424284,33.1789,171.38,171.25,0.8080819]
[1721875424493,5.8366,171.34,171.25,0.8080819]
[1721875424867,17.53,171.36,171.25,0.8080819]
[1721875425272,23.3687,171.27,171.25,0.8080819]
[1721875425793,5.84,171.23,171.22,7.7261776]
[1721875426493,5.8413,171.2,171.09,7.79569105]
[1721875426789,5.8406,171.22,171.09,6.6274]
[1721875426994,17.53,171.24,171.09,6.6274]
[1721875427196,17.53,171.22,171.08,0.8080819]
[1721875427364,36.46,171.22,171.08,0.8080819]
[1721875427781,42.3007,171.22,171.08,0.8080819]
[1721875428487,5.8408,171.21,171.08,0.8080819]
[1721875432497,36.46,171.22,171.08,1.97667686]
[1721875433580,42.3006,171.22,171.08,1.97667686]
[1721875434198,38.3506,171.22,171.08,1.97667686]
[1721875434399,5.8407,171.21,171.08,0.8080819]
[1721875434996,5.8407,171.21,171.08,1.97667915]
[1721875435883,0.58452187,171.09,171.08,1.97667915]
[1721875436413,5.8407,171.21,171.08,1.97667915]
[1721875437382,38.3504,171.22,171.08,1.97667915]
[1721875438110,38.3504,171.22,171.09,15.3038]
[1721875438291,5.841,171.21,171.1,45.0]
[1721875439114,38.3504,171.22,171.1,45.0]
[1721875439282,5.8408,171.21,171.1,45.0]
[1721875439480,5.8414,171.2,171.1,45.0]
[1721875439684,5.8418,171.18,171.09,15.3038]
[1721875440403,32.51,171.19,171.09,15.3038]
[1721875440404,38.3514,171.19,171.09,15.3038]
[1721875440612,32.51,171.19,171.09,15.3038]
[1721875440783,32.51,171.19,171.1,45.0]
[1721875441124,0.94941987,171.1,171.09,15.3038]
[1721875441288,0.94941987,171.1,171.09,60.3038]
[1721875442215,32.51,171.22,171.09,51.4683]
[1721875442421,5.8414,171.2,171.09,51.4683]
[1721875442899,5.8414,171.2,171.1,45.0]
[1721875443294,5.8411,171.21,171.1,45.0]
[1721875443693,50.04,171.22,171.08,0.8080819]
[1721875444016,5.8415,171.19,171.08,0.8080819]
[1721875444318,32.51,171.19,171.08,0.8080819]
[1721875444518,32.51,171.16,171.08,0.8080819]
[1721875444686,5.8442,171.11,171.08,0.8080819]
[1721875445190,38.3537,171.13,171.08,0.8080819]
[1721875445808,32.51,171.13,171.08,0.8080819]
[1721875446196,5.8428,171.15,171.08,0.8080819]
[1721875446507,17.53,171.19,170.91,8.19e-05]
[1721875446508,17.53,171.04,170.91,8.19e-05]
[1721875446717,16.438,171.08,170.91,8.19e-05]
[1721875446718,32.51,170.92,170.91,8.19e-05]
[1721875446889,38.3606,170.92,170.91,8.19e-05]
[1721875447091,66.37253829,170.92,170.82,10.0]
[1721875447291,32.51,170.85,170.82,10.0]
[1721875447496,32.51,170.85,170.83,5.8536]
[1721875447690,32.51,170.85,170.82,10.0]
[1721875448425,58.09253829,170.91,170.82,10.0]
[1721875448708,5.8534,170.84,170.82,10.0]
[1721875449698,6.07582531,170.87,170.82,10.0]
[1721875449907,42.81582531,170.87,170.82,10.0]
[1721875450111,5.8518,170.89,170.82,10.0]
[1721875450496,5.8517,170.89,170.82,15.8539]
[1721875450696,1.16900985,170.89,170.82,10.0]
[1721875450897,17.53,170.88,170.82,10.0]
[1721875451199,5.8529,170.86,170.82,10.0]
[1721875451416,5.8535,170.84,170.82,10.0]
[1721875452298,5.853,170.86,170.82,10.0]
[1721875452505,1.16900985,170.88,170.82,10.0]
[1721875453310,5.8533,170.85,170.82,10.0]
[1721875453522,7.02130985,170.88,170.82,10.0]
[1721875453821,5.8527,170.86,170.82,10.0]
[1721875454333,1.16900985,170.85,170.82,10.0]
[1721875455334,7.02170985,170.86,170.82,10.0]
[1721875455639,1.16900985,170.86,170.82,10.0]
[1721875456008,5.8518,170.89,170.82,10.0]
[1721875456232,17.53,170.92,170.83,5.8537]
[1721875456531,5.8521,170.88,170.82,10.0]
[1721875456731,18.69900985,170.87,170.82,10.0]
[1721875456944,5.8535,170.84,170.82,10.0]
[1721875457114,2.52154814,170.83,170.73,0.8080819]
[1721875457307,14.6363,170.81,170.73,0.8080819]
[1721875457650,8.36581723,170.8,170.73,0.8080819]
[1721875457812,7.02390985,170.8,170.73,0.8080819]
[1721875458012,1.16900985,170.8,170.73,0.8080819]
[1721875458216,5.8566,170.75,170.73,0.8080819]
[1721875458418,1.16900985,170.74,170.73,0.8080819]
[1721875460016,21.16900985,170.74,170.73,0.8080819]
[1721875461124,27.24555349,170.74,170.73,0.8080819]
[1721875461349,27.24555349,170.74,170.62,5.8608]
[1721875461350,1.16900985,170.73,170.62,5.8608]
[1721875461647,36.74,170.72,170.56,0.8080819]
[1721875461936,1.16900985,170.72,170.57,1.17210433]
[1721875462124,1.16900985,170.72,170.56,0.8080819]
[1721875462327,1.16900985,170.72,170.68,5.8588]
[1721875462534,6.07654364,170.74,170.57,57.91194974]
[1721875462726,1.16900985,170.78,170.72,5.8574]
[1721875463038,1.16900985,170.78,170.6,1.17158979]
[1721875463339,1.16900985,170.79,170.75,5.8564]
[1721875463519,1.16900985,170.79,170.73,5.8569]
[1721875463724,1.16900985,170.79,170.72,0.0745319]
[1721875464734,1.16900985,170.79,170.74,5.8567]
[1721875464942,1.16900985,170.79,170.72,0.0745319]
[1721875465123,1.16900985,170.79,170.73,5.8571]
[1721875465334,5.8558,170.77,170.72,0.0745319]
[1721875465641,1.16900985,170.76,170.72,0.0745319]
[1721875466219,36.74,170.81,170.72,0.0745319]
[1721875466220,1.16900985,170.78,170.72,0.0745319]
[1721875466426,31.0654,170.88,170.72,0.0745319]
[1721875466427,1.16900985,170.83,170.72,0.0745319]
[1721875466641,6.088,170.85,170.72,0.0745319]
[1721875466642,1.16900985,170.82,170.72,0.0745319]
[1721875466836,1.16900985,170.82,170.69,18.90056755]
[1721875467032,7.31765165,170.84,170.69,18.89792299]
[1721875467224,5.8539,170.83,170.76,5.8561]
[1721875467462,5.8539,170.83,170.69,18.89792299]
[1721875467463,1.46432436,170.82,170.69,18.89792299]
[1721875467757,1.46432436,170.82,170.77,5.8557]
[1721875467922,7.31852436,170.82,170.75,5.8561]
[1721875468123,1.46432436,170.82,170.62,6.6543]
[1721875468346,18.99432436,170.82,170.63,46.17158587]
[1721875468537,18.99432436,170.82,170.63,1.17158587]
[1721875468848,18.99432436,170.82,170.49,23.365]
[1721875468849,5.8613,170.61,170.55,0.8037669]
[1721875469066,1.46587692,170.6,170.55,0.8037669]
[1721875469360,20.0,170.6,170.55,0.8037669]
[1721875469537,20.0,170.6,170.56,5.8628]
[1721875469745,1.46583133,170.59,170.55,0.8037669]
[1721875470548,1.46605735,170.58,170.55,0.8037669]
[1721875470738,1.4662397,170.57,170.55,0.8037669]
[1721875471634,1.02129165,170.66,170.55,0.8037669]
[1721875471854,38.20573725,170.64,170.58,5.8623]
[1721875472023,5.8606,170.63,170.56,5.8628]
[1721875472222,1.46578908,170.62,170.55,6.6670669]
[1721875472450,1.46578908,170.62,170.55,0.8037669]
[1721875472927,5.8627,170.57,170.55,0.8037669]
[1721875473246,1.46634101,170.56,170.55,0.8037669]
[1721875473850,1.46609507,170.58,170.55,0.8037669]
[1721875474029,42.82070899,170.64,170.55,0.8037669]
[1721875474346,5.8629,170.57,170.55,0.8037669]
[1721875474521,1.46635935,170.56,170.55,0.8037669]
[1721875476434,1.46635935,170.56,170.38,0.8037669]
[1721875476435,17.53,170.55,170.38,0.8037669]
[1721875476754,17.53,170.55,170.23,41.13863]
[1721875476755,6.1606,170.44,170.24,1.17376249]
[1721875477049,0.35284628,170.48,170.28,36.74]
[1721875477346,0.35284628,170.48,170.29,28.05061242]
[1721875477529,0.35284628,170.48,170.33,36.74]
[1721875477728,0.35284628,170.48,170.34,8.57391082]
[1721875477928,0.35284628,170.48,170.37,36.74]
[1721875478150,0.35284628,170.48,170.46,5.8663]
[1721875478441,0.35284628,170.48,170.32,20.0]
[1721875478674,0.35284628,170.48,170.46,5.8662]
[1721875479651,0.35284628,170.48,170.36,1.17317936]
[1721875479841,0.35284628,170.48,170.44,5.8669]
[1721875480037,0.35284628,170.48,170.36,46.17317936]
[1721875480240,0.35284628,170.48,170.46,5.8663]
[1721875481027,0.35284628,170.48,170.44,5.8669]
[1721875481258,0.35284628,170.48,170.33,1.17336219]
[1721875481437,0.35284628,170.48,170.42,5.8677]
[1721875481640,0.35284628,170.48,170.44,5.8669]
[1721875481846,0.35284628,170.48,170.42,5.8677]
[1721875482049,0.35284628,170.48,170.4,5.8683]
[1721875482351,36.74,170.46,170.39,5.8687]
[1721875482533,1.467324,170.45,170.39,5.8687]
[1721875482855,36.74,170.42,170.37,5.8693]
[1721875483042,1.46747854,170.41,170.37,5.8693]
[1721875483240,1.46747854,170.41,170.28,1.17383375]
[1721875483751,1.46747854,170.41,170.23,0.06983]
[1721875483752,1.46747854,170.41,170.24,1.17399612]
[1721875484055,5.8678,170.42,170.34,5.8705]
[1721875484254,6.07922028,170.45,170.28,20.0]
[1721875484440,1.46703988,170.49,170.3,20.0]
[1721875484646,1.46696476,170.48,170.4,5.8682]
[1721875484842,51.18656168,170.54,170.31,21.17357181]
[1721875485038,51.18656168,170.54,170.31,1.17357181]
[1721875485241,17.53,170.53,170.29,21.17374932]
[1721875485430,45.11,170.5,170.38,5.8691]
[1721875485635,1.46733495,170.49,170.38,5.8691]
[1721875485941,5.8671,170.45,170.24,1.17386614]
[1721875486140,63.99733495,170.49,170.24,1.17386614]
[1721875486141,1.46758263,170.44,170.24,1.17386614]
[1721875486343,1.4674209,170.49,170.38,5.8692]
[1721875486654,1.46731109,170.48,170.27,65.11]
[1721875486845,1.46701775,170.52,170.48,5.8657]
[1721875487050,1.46666103,170.51,170.49,5.8652]
[1721875487253,1.46666103,170.51,170.47,5.8659]
[1721875487441,1.46666103,170.51,170.35,20.0]
[1721875487644,1.46660937,170.57,170.36,66.17328749]
[1721875487851,7.54567543,170.57,170.37,20.0]
[1721875488056,1.4661955,170.57,170.39,20.0]
[1721875488352,1.4661955,170.57,170.4,46.17305498]
[1721875488540,17.53,170.56,170.4,1.17305498]
[1721875488742,5.8648,170.51,170.43,5.8673]
[1721875488957,5.8656,170.49,170.4,5.8684]
[1721875489141,1.46676273,170.48,170.32,1.17341018]
[1721875489454,1.46676273,170.48,170.38,5.8689]
[1721875489635,1.46676273,170.48,170.41,5.868]
[1721875489838,5.8662,170.47,170.39,5.8686]
[1721875490040,1.4670722,170.46,170.4,5.8684]
[1721875490246,1.4670722,170.46,170.33,1.17365883]
[1721875490562,1.46702432,170.48,170.33,1.17365883]
[1721875490858,1.46702432,170.48,170.44,5.8669]
[1721875491155,1.46681934,170.51,170.44,5.8669]
[1721875491356,24.86171934,170.51,170.43,5.8672]
[1721875491657,1.46681934,170.51,170.33,1.17365883]
[1721875491857,16.5555,170.49,170.23,1.24361886]
[1721875492050,45.11,170.46,170.24,0.12217464]
[1721875492246,1.46769558,170.45,170.24,1.29633111]
[1721875492451,17.53,170.43,170.24,1.29633111]
[1721875492652,1.46774855,170.42,170.24,1.29633111]
[1721875492964,7.33433633,170.45,170.24,1.29633111]
[1721875493262,1.46743633,170.45,170.38,5.869]
[1721875493776,1.46743633,170.45,170.24,86.28415647]
[1721875493950,5.8672,170.44,170.37,5.8694]
[1721875494145,5.8672,170.44,170.36,5.8696]
[1721875494346,16.5555,170.49,170.24,41.17415647]
[1721875494347,17.53,170.43,170.24,1.17415647]
[1721875494652,5.8689,170.39,170.24,1.17415647]
[1721875494857,1.46790339,170.41,170.24,1.17415647]
[1721875495165,18.99790339,170.41,170.32,5.8712]
[1721875495364,5.869,170.39,170.3,5.8717]
[1721875495565,1.46800308,170.38,170.23,0.06983]
[1721875495767,5.8697,170.37,170.24,0.16008877]
[1721875495978,1.46804478,170.36,170.3,5.8718]
[1721875496150,5.8703,170.35,170.27,5.8728]
[1721875496344,1.46822993,170.34,170.27,5.8728]
[1721875496551,7.33902993,170.34,170.26,5.8732]
[1721875496866,17.53,170.24,170.23,0.06983]
[1721875497167,5.8747,170.23,170.21,0.8037669]
[1721875497483,5.8747,170.23,170.02,0.23528]
[1721875497484,53.32789715,170.22,170.02,0.23528]
[1721875497649,45.11,170.17,170.02,0.23528]
[1721875497847,5.8773,170.15,170.02,0.23528]
[1721875498048,1.47032869,170.14,170.02,0.23528]
[1721875498483,1.47032869,170.14,170.09,0.4692047]
[1721875498772,7.54970965,170.14,170.09,0.4692047]
[1721875498950,1.47019897,170.13,170.09,0.4692047]
[1721875499149,5.8788,170.1,170.09,0.4692047]
[1721875499381,5.881,170.04,170.02,0.23528]
[1721875499583,1.47094788,170.03,170.02,0.23528]
[1721875499786,1.47094788,170.03,169.78,2.6632]
[1721875499787,14.7218,169.82,169.78,2.6632]
[1721875499961,5.892,169.72,169.49,0.07472193]
[1721875500276,5.893,169.69,169.68,6.1e-06]
[1721875500587,5.893,169.69,169.49,0.07472193]
[1721875500588,5.8958,169.62,169.49,0.07472193]
[1721875500899,45.11,169.72,169.5,0.4675061]
[1721875500900,27.7763449,169.61,169.5,0.4675061]
[1721875501191,5.80730087,169.64,169.49,0.04222803]
[1721875501192,45.11,169.64,169.49,0.04222803]
[1721875501761,4.5094,169.7,169.49,0.04222803]
[1721875501969,4.5094,169.7,169.58,5.8967]
[1721875502181,4.5094,169.7,169.49,0.04222803]
[1721875502182,45.11,169.68,169.49,0.04222803]
[1721875502554,45.11,169.74,169.49,0.04222803]
[1721875502757,45.11,169.7,169.49,0.04222803]
[1721875502980,6.07554219,169.67,169.49,0.04222803]
[1721875503281,45.11,169.7,169.49,0.04222803]
[1721875503461,6.07699148,169.69,169.55,5.8976]
[1721875503783,5.8936,169.68,169.56,5.8976]
[1721875504287,6.07699148,169.69,169.52,20.0]
[1721875504481,45.11,169.56,169.49,0.04222803]
[1721875504690,5.8997,169.5,169.49,0.04222803]
[1721875504850,45.11,169.56,169.49,0.04222803]
[1721875505057,45.11,169.62,169.49,0.04222803]
[1721875505284,45.11,169.58,169.49,0.04222803]
[1721875505652,6.08149775,169.68,169.49,0.04222803]
[1721875505877,45.11,169.65,169.49,0.04222803]
[1721875506469,6.08149775,169.68,169.49,0.04222803]
[1721875506663,45.11,169.64,169.49,0.04222803]
[1721875506869,6.08149775,169.68,169.49,0.04222803]
[1721875507073,51.19149775,169.68,169.49,0.04222803]
[1721875507716,51.19149775,169.68,169.49,20.04222803]
[1721875507988,51.19149775,169.68,169.5,20.0]
[1721875508189,51.19149775,169.68,169.51,20.0]
[1721875508381,51.19149775,169.68,169.49,0.04222803]
[1721875508382,45.11,169.64,169.49,0.04222803]
[1721875508581,45.11,169.6,169.49,0.04222803]
[1721875508793,45.11,169.64,169.49,0.04222803]
[1721875509013,45.11,169.59,169.49,0.04222803]
[1721875509304,5.8997,169.5,169.49,0.04222803]
[1721875509467,51.0097,169.5,169.49,2.803e-05]
[1721875510301,1.13239486,169.58,169.49,2.803e-05]
[1721875510471,51.0097,169.5,169.49,2.803e-05]
[1721875510671,72.14209486,169.5,169.49,2.803e-05]
[1721875511000,71.0097,169.5,169.49,2.803e-05]
[1721875511239,51.0097,169.5,169.49,2.803e-05]
[1721875511382,116.0097,169.5,169.49,2.803e-05]
[1721875511694,65.11,169.5,169.49,2.803e-05]
[1721875511892,5.9005,169.48,169.46,0.2]
[1721875512076,45.11,169.5,169.46,0.2]
[1721875512285,45.11,169.57,169.46,0.2]
[1721875512806,5.8985,169.54,169.46,0.2]
[1721875512967,45.11,169.57,169.46,0.2]
[1721875513168,5.8999,169.5,169.46,0.2]
[1721875513378,45.11,169.53,169.46,0.2]
[1721875513567,5.8998,169.5,169.46,0.2]
[1721875514382,45.11,169.53,169.46,0.2]
[1721875514577,5.8991,169.52,169.46,0.2]
[1721875514790,5.9002,169.49,169.46,0.2]
[1721875515012,5.8995,169.51,169.46,0.2]
[1721875515200,5.9006,169.48,169.46,0.2]
[1721875515790,45.11,169.49,169.46,0.2]
[1721875516015,51.0101,169.49,169.46,0.2]
[1721875516324,20.0,169.48,169.46,0.2]
[1721875516496,51.0101,169.49,169.46,0.2]
[1721875516888,6.08708681,169.51,169.46,0.2]
[1721875517608,45.11,169.57,169.46,0.2]
[1721875517888,51.195115,169.57,169.46,0.2]
[1721875518310,45.11,169.52,169.46,0.2]
[1721875518516,45.11,169.47,169.46,0.2]
[1721875519190,17.53,169.45,169.31,2.53112789]
[1721875519388,51.0157,169.33,169.31,2.53112789]
[1721875519588,20.0,169.32,169.31,2.53112789]
[1721875520189,45.11,169.32,169.2,0.37871058]
[1721875520414,20.0,169.33,169.2,0.37871058]
[1721875520415,5.9089,169.24,169.2,0.37871058]
[1721875520615,5.9096,169.22,169.2,1.058e-05]
[1721875520826,20.0,169.21,169.1,11.50001058]
[1721875521114,45.11,169.28,169.1,11.50001058]
[1721875521314,5.9089,169.24,169.1,11.50001058]
[1721875521523,5.9132,169.12,169.1,11.50001058]
[1721875521694,20.0,169.22,169.1,11.50001058]
[1721875521695,5.9133,169.11,169.1,11.50001058]
[1721875521894,68.5533,169.11,169.1,11.00001058]
[1721875522097,45.11,169.11,169.1,11.00001058]
[1721875522632,5.9137,169.1,169.0,2.0]
[1721875523022,45.11,169.11,169.0,2.0]
[1721875523636,45.11,169.11,168.96,7.2999791]
[1721875523843,45.11,169.02,168.82,0.10693703]
[1721875524139,45.11,169.02,168.87,0.49762575]
[1721875524350,5.9183,168.97,168.82,0.10693703]
[1721875524640,5.9201,168.92,168.82,0.10693703]
[1721875524848,45.11,168.9,168.82,0.10693703]
[1721875525145,45.11,168.88,168.8,4.80693703]
[1721875525329,65.11,169.11,168.8,4.80693703]
[1721875525649,1.13239486,169.08,168.81,6.0609]
[1721875525947,1.13239486,169.08,168.83,20.0]
[1721875526138,1.13239486,169.07,168.84,20.0]
[1721875526446,1.13239486,169.07,168.89,15.9239]
[1721875526649,45.11,169.15,168.89,15.9239]
[1721875526839,1.13239486,169.14,168.9,20.0]
[1721875527020,1.13239486,169.14,168.9,40.0]
[1721875527219,45.11,169.24,168.97,20.0]
[1721875527415,45.11,169.29,169.0,45.11]
[1721875527615,45.11,169.29,169.01,65.0]
[1721875527616,1.13239486,169.28,169.01,65.0]
[1721875527928,45.11,169.34,169.07,20.0]
[1721875528130,1.13239486,169.33,169.08,90.11]
[1721875528324,7.21778183,169.33,169.09,20.0]
[1721875528544,6.08538697,169.33,169.1,45.0]
[1721875528761,45.11,169.41,169.12,45.11]
[1721875529052,45.11,169.41,169.14,6.3982]
[1721875529248,1.13239486,169.4,169.16,15.2247]
[1721875529428,1.13239486,169.4,169.17,20.0]
[1721875529626,45.11,169.47,169.2,45.11]
[1721875529955,45.11,169.47,169.21,65.0]
[1721875529956,7.03369486,169.46,169.21,65.0]
[1721875530172,1.13239486,169.45,169.21,85.0]
[1721875530361,1.13239486,169.45,169.24,20.0]
[1721875530543,45.11,169.51,169.26,20.0]
[1721875530743,46.24239486,169.51,169.27,20.0]
[1721875530957,46.24239486,169.51,169.3,20.0]
[1721875531165,5.8961,169.61,169.32,6.3773]
[1721875531384,45.11,169.59,169.35,20.0]
[1721875531668,51.0046,169.65,169.36,110.11]
[1721875531873,6.08782025,169.6,169.36,110.11]
[1721875532049,5.895,169.64,169.36,110.11]
[1721875532376,6.08384904,169.64,169.36,110.11]
[1721875532555,11.97874904,169.64,169.36,110.11]
[1721875532872,6.08384904,169.64,169.36,110.11]
[1721875533050,6.08384904,169.64,169.37,20.0]
[1721875533243,6.08384904,169.64,169.38,65.0]
[1721875533573,5.8977,169.56,169.38,65.0]
[1721875533785,45.11,169.6,169.38,65.0]
[1721875533958,5.8967,169.59,169.38,65.0]
[1721875534164,45.11,169.6,169.38,65.0]
[1721875534165,5.8971,169.58,169.38,65.0]
[1721875534349,5.8974,169.57,169.38,65.0]
[1721875534544,5.897,169.58,169.38,65.0]
[1721875534762,14.74,169.61,169.38,65.0]
[1721875535076,17.53,169.6,169.38,65.0]
[1721875535576,11.97784904,169.64,169.38,65.0]
[1721875535754,5.896,169.61,169.38,65.0]
[1721875535959,1.13239486,169.63,169.38,65.0]
[1721875536169,18.66239486,169.63,169.38,65.0]
[1721875536372,18.66239486,169.63,169.39,20.0]
[1721875536669,1.13239486,169.62,169.4,65.0]
[1721875537358,1.13239486,169.62,169.42,20.0]
[1721875537654,1.13239486,169.62,169.43,65.0]
[1721875537973,29.50894904,169.64,169.43,65.0]
[1721875538148,17.53,169.63,169.43,65.0]
[1721875538347,5.8956,169.62,169.43,65.0]
[1721875538547,5.8956,169.62,169.37,20.0]
[1721875538548,17.53,169.6,169.34,16.0203]
[1721875538743,6.08384904,169.64,169.4,45.11]
[1721875538976,17.53,169.61,169.35,45.11]
[1721875539150,18.66239486,169.61,169.35,45.11]
[1721875539489,5.8972,169.58,169.35,45.11]
[1721875539645,5.8978,169.56,169.35,45.11]
[1721875539850,5.8971,169.58,169.35,45.11]
[1721875540051,51.19384904,169.64,169.38,20.0]
[1721875540251,6.08384904,169.64,169.45,20.0]
[1721875540547,23.629877,169.76,169.47,15.6136]
[1721875540763,6.09455664,169.66,169.49,20.0]
[1721875540962,52.13379486,169.74,169.5,65.0]
[1721875541289,45.11,169.61,169.32,6.2709]
[1721875541456,1.13239486,169.6,169.41,30.0]
[1721875541786,45.11,169.53,169.32,6.2709]
[1721875542272,45.11,169.53,169.2,21.5711]
[1721875542273,45.11,169.46,169.2,21.5711]
[1721875542487,45.11,169.27,169.1,22.1675]
[1721875542650,45.11,169.23,169.1,22.1675]
[1721875542852,45.11,169.19,169.0,6.2709]
[1721875543067,45.11,169.15,169.0,6.2709]
[1721875543256,20.11,169.15,169.0,6.2709]
[1721875543466,26.0219,169.15,169.0,6.2709]
[1721875543664,45.11,169.19,169.0,6.2709]
[1721875543869,51.0206,169.19,169.0,6.2709]
[1721875544049,6.09694882,169.18,169.0,6.2709]
[1721875544247,6.09694882,169.18,169.04,20.0]
[1721875544448,45.11,169.3,169.09,20.0]
[1721875544671,45.11,169.38,169.09,20.0]
[1721875544976,45.11,169.34,169.11,20.0]
[1721875545174,45.11,169.3,169.08,20.0]
[1721875545385,45.11,169.3,169.07,20.0]
[1721875546089,1.13239486,169.33,169.14,20.0]
[1721875546253,45.11,169.36,169.16,35.2391]
[1721875546765,45.11,169.36,169.18,6.2673]
[1721875546968,6.09122432,169.37,169.19,70.86523706]
[1721875547170,51.0146,169.36,169.19,45.0]
[1721875547368,45.11,169.36,169.19,45.0]
[1721875548178,45.11,169.36,169.18,6.2673]
[1721875548368,45.11,169.36,169.18,26.2673]
[1721875548569,45.11,169.32,169.18,6.2673]
[1721875549270,5.9065,169.31,169.18,6.2673]
[1721875549471,45.11,169.32,169.18,6.2673]
[1721875550376,23.4365,169.31,169.18,6.2673]
[1721875550578,62.64,169.31,169.18,6.2673]
[1721875550772,45.11,169.31,169.18,6.2673]
[1721875551280,68.5478,169.27,169.18,6.2673]
[1721875551485,45.11,169.27,169.18,6.2673]
[1721875551785,45.11,169.31,169.18,6.2673]
[1721875551985,5.9057,169.33,168.89,18.21865426]
[1721875551986,20.0,168.98,168.89,18.21865426]
[1721875552178,15.60946843,168.97,168.89,4.30536303]
[1721875552379,45.11,168.9,168.83,15.997]
[1721875552770,45.11,168.84,168.83,15.997]
[1721875553163,45.57,168.84,168.74,6.399]
[1721875553382,45.57,168.84,168.68,1.5012791]
[1721875553383,20.7329,168.82,168.68,1.5012791]
[1721875553580,20.0,168.81,168.69,5.9278]
[1721875553809,51.67316225,168.84,168.75,5.9257]
[1721875553968,6.10316225,168.84,168.71,14.8181]
[1721875554164,45.57,168.81,168.8,3.703e-05]
[1721875554384,45.57,168.81,168.68,1.5012791]
[1721875554385,5.928,168.69,168.68,1.5012791]
[1721875554616,45.57,168.69,168.68,7.91e-05]
[1721875554763,51.498,168.69,168.68,7.91e-05]
[1721875554964,45.57,168.75,168.68,7.91e-05]
[1721875555166,51.4959,168.75,168.68,7.91e-05]
[1721875555367,4.80693703,168.77,168.68,7.91e-05]
[1721875555784,4.80693703,168.77,168.75,5.9259]
[1721875556288,1.02563801,168.97,168.79,14.8105]
[1721875556494,1.02563801,168.97,168.84,14.806]
[1721875556495,6.09978872,168.9,168.84,14.806]
[1721875556792,14.8176,168.94,168.84,14.806]
[1721875556968,1.02563801,168.97,168.86,5.9217]
[1721875557168,6.09739532,168.97,168.89,14.8022]
[1721875557387,6.09739532,168.97,168.91,5.92]
[1721875557591,45.57,169.02,168.92,5.9196]
[1721875557791,45.57,169.02,168.94,5.919]
[1721875557968,6.09689097,169.01,168.97,5.9179]
[1721875558306,1.0246858,169.11,168.94,14.7981]
[1721875558591,6.09500806,169.04,168.97,5.918]
[1721875558794,5.9148,169.07,168.97,5.918]
[1721875558970,5.9148,169.07,168.94,14.7981]
[1721875558971,51.66469332,169.1,168.94,20.7172]
[1721875559171,45.57,169.06,168.94,14.7981]
[1721875559576,45.57,169.01,168.89,14.8024]
[1721875559791,45.57,168.97,168.77,15.7204]
[1721875560184,45.57,169.01,168.79,20.0]
[1721875560381,45.57,169.01,168.77,15.7204]